[Event "*** Titled Tuesday Blitz"]
[Site "Chess.com"]
[Date "2020.12.01"]
[Round "3"]
[White "MasterKroket"]
[Black "FMKonstantin_Twitch"]
[Result "1-0"]
[WhiteElo "2407"]
[BlackElo "2613"]
[TimeControl "180+1"]
[EndTime "10:28:53 PST"]
[Termination "MasterKroket won by resignation"]

1. d4 {[%clk 0:03:00.9]} 1... Nf6 {[%clk 0:02:59.2]} 2. c4 {[%clk 0:03:01]} 2...
g6 {[%clk 0:03:00.1]} 3. Nc3 {[%clk 0:03:00.9]} 3... Bg7 {[%clk 0:03:01]} 4. e4
{[%clk 0:03:00.7]} 4... O-O {[%clk 0:03:01.6]} 5. Nf3 {[%clk 0:03:01.3]} 5... d6
{[%clk 0:03:01.5]} 6. Be2 {[%clk 0:03:01.6]} 6... c5 {[%clk 0:03:00.4]} 7. d5
{[%clk 0:03:01.8]} 7... e6 {[%clk 0:03:00.2]} 8. O-O {[%clk 0:03:01.4]} 8...
exd5 {[%clk 0:03:00.8]} 9. exd5 {[%clk 0:03:01]} 9... Re8 {[%clk 0:03:00.9]} 10.
h3 {[%clk 0:02:59.1]} 10... a6 {[%clk 0:03:00.6]} 11. a4 {[%clk 0:02:58.7]}
11... Nbd7 {[%clk 0:03:00.3]} 12. Bf4 {[%clk 0:02:57.4]} 12... Qb6 {[%clk
0:02:57.9]} 13. Qc2 {[%clk 0:02:44.1]} 13... Ne5 {[%clk 0:02:56.9]} 14. Nxe5
{[%clk 0:02:40.5]} 14... dxe5 {[%clk 0:02:57.8]} 15. a5 {[%clk 0:02:34.4]} 15...
Qd6 {[%clk 0:02:57]} 16. Be3 {[%clk 0:02:31.5]} 16... Bf5 {[%clk 0:02:53.4]} 17.
Qb3 {[%clk 0:02:27.6]} 17... h5 {[%clk 0:02:36.4]} 18. Na4 {[%clk 0:02:25.3]}
18... Nd7 {[%clk 0:02:33.4]} 19. Qxb7 {[%clk 0:02:18.8]} 19... Rec8 {[%clk
0:02:15.4]} 20. Qb3 {[%clk 0:02:08.9]} 20... Rab8 {[%clk 0:02:14.5]} 21. Qd1
{[%clk 0:01:50.8]} 21... Rb4 {[%clk 0:02:07.6]} 22. Bd2 {[%clk 0:01:39.4]} 22...
h4 {[%clk 0:01:55.1]} 23. Bxb4 {[%clk 0:01:32.2]} 23... cxb4 {[%clk 0:01:56]}
24. c5 {[%clk 0:01:18.5]} 24... Nxc5 {[%clk 0:01:53.6]} 25. Rc1 {[%clk
0:01:08.3]} 25... Bf8 {[%clk 0:01:45.3]} 26. Nxc5 {[%clk 0:01:05.8]} 26... Rxc5
{[%clk 0:01:46.2]} 27. Rxc5 {[%clk 0:01:05.6]} 27... Qxc5 {[%clk 0:01:47]} 28.
Bxa6 {[%clk 0:01:06]} 28... Qxa5 {[%clk 0:01:47]} 29. Bc4 {[%clk 0:00:54.6]}
29... Bd6 {[%clk 0:01:44.5]} 30. Qd2 {[%clk 0:00:53]} 30... Kg7 {[%clk
0:01:40.9]} 31. Qg5 {[%clk 0:00:48.1]} 31... Qc5 {[%clk 0:01:25.7]} 32. b3
{[%clk 0:00:48.3]} 32... Qd4 {[%clk 0:01:19.2]} 33. Qe3 {[%clk 0:00:42.5]} 33...
Bc5 {[%clk 0:01:09.5]} 34. Qxd4 {[%clk 0:00:41.2]} 34... exd4 {[%clk 0:01:10.4]}
35. Ra1 {[%clk 0:00:36.9]} 35... d3 {[%clk 0:01:00.2]} 36. Rd1 {[%clk 0:00:35]}
36... Be4 {[%clk 0:00:55]} 37. Kf1 {[%clk 0:00:24.2]} 37... Kf6 {[%clk
0:00:53.9]} 38. f3 {[%clk 0:00:24.7]} 38... Bf5 {[%clk 0:00:54.3]} 39. Bxd3
{[%clk 0:00:24.6]} 39... Bd7 {[%clk 0:00:55.2]} 40. Bc4 {[%clk 0:00:24.6]} 40...
Bd6 {[%clk 0:00:55.3]} 41. Ke2 {[%clk 0:00:24.2]} 41... Kf5 {[%clk 0:00:54.1]}
42. Ra1 {[%clk 0:00:21.2]} 42... Kf4 {[%clk 0:00:50.6]} 43. Ra7 {[%clk
0:00:21.1]} 43... Be8 {[%clk 0:00:49.8]} 44. Ra6 {[%clk 0:00:19.8]} 44... Be5
{[%clk 0:00:47.6]} 45. Ra8 {[%clk 0:00:18.6]} 45... Bd7 {[%clk 0:00:45.5]} 46.
Rf8 {[%clk 0:00:18.5]} 46... f6 {[%clk 0:00:43.4]} 47. Rf7 {[%clk 0:00:17.9]}
47... Bf5 {[%clk 0:00:41.4]} 48. Bd3 {[%clk 0:00:15.1]} 48... Bxd3+ {[%clk
0:00:40]} 49. Kxd3 {[%clk 0:00:15.1]} 49... Kg3 {[%clk 0:00:40.9]} 50. Ke4
{[%clk 0:00:14.6]} 50... Kxg2 {[%clk 0:00:38.8]} 51. f4 {[%clk 0:00:15]} 51...
Bd6 {[%clk 0:00:21.8]} 52. Rxf6 {[%clk 0:00:15.2]} 52... Bb8 {[%clk 0:00:19.9]}
53. Rxg6+ {[%clk 0:00:15.4]} 53... Kxh3 {[%clk 0:00:19.8]} 54. d6 {[%clk
0:00:16]} 54... Kh2 {[%clk 0:00:20]} 55. d7 {[%clk 0:00:16.4]} 55... Bc7 {[%clk
0:00:20.1]} 56. Rg8 {[%clk 0:00:16.5]} 56... h3 {[%clk 0:00:20.7]} 57. d8=Q
{[%clk 0:00:16.8]} 57... Bxd8 {[%clk 0:00:21.2]} 58. Rxd8 {[%clk 0:00:17.7]}
58... Kh1 {[%clk 0:00:21.7]} 59. Rh8 {[%clk 0:00:18.3]} 59... h2 {[%clk
0:00:22.6]} 60. f5 {[%clk 0:00:18.9]} 60... Kg1 {[%clk 0:00:22.5]} 61. f6 {[%clk
0:00:19.5]} 61... h1=B+ {[%clk 0:00:21.4]} 62. Rxh1+ {[%clk 0:00:19.3]} 62...
Kxh1 {[%clk 0:00:21.4]} 63. f7 {[%clk 0:00:20]} 1-0

[Event "*** Titled Tuesday Blitz"]
[Site "Chess.com"]
[Date "2020.12.01"]
[Round "3"]
[White "Pikachess999"]
[Black "Isajevsky_Anton"]
[Result "0-1"]
[WhiteElo "2352"]
[BlackElo "2566"]
[TimeControl "180+1"]
[EndTime "10:28:53 PST"]
[Termination "Isajevsky_Anton won by resignation"]

1. e4 {[%clk 0:03:00.9]} 1... c5 {[%clk 0:02:53.8]} 2. a3 {[%clk 0:03:00.5]}
2... g6 {[%clk 0:02:48.6]} 3. h4 {[%clk 0:03:00.1]} 3... h5 {[%clk 0:02:46.1]}
4. d4 {[%clk 0:03:00.1]} 4... Bg7 {[%clk 0:02:39.1]} 5. Nf3 {[%clk 0:02:59.8]}
5... cxd4 {[%clk 0:02:38.6]} 6. Nxd4 {[%clk 0:02:59.5]} 6... Nc6 {[%clk
0:02:37.7]} 7. Be3 {[%clk 0:02:59.5]} 7... Nf6 {[%clk 0:02:37.6]} 8. Nc3 {[%clk
0:02:59.7]} 8... Ng4 {[%clk 0:02:36.7]} 9. Nxc6 {[%clk 0:02:59.2]} 9... bxc6
{[%clk 0:02:35.2]} 10. Bd4 {[%clk 0:02:58.9]} 10... Bxd4 {[%clk 0:01:56.8]} 11.
Qxd4 {[%clk 0:02:59.8]} 11... e5 {[%clk 0:01:57.1]} 12. Qc5 {[%clk 0:02:32.5]}
12... Qe7 {[%clk 0:01:50.7]} 13. Qxe7+ {[%clk 0:02:26]} 13... Kxe7 {[%clk
0:01:50.7]} 14. f3 {[%clk 0:02:18.3]} 14... Nf6 {[%clk 0:01:42.1]} 15. O-O-O
{[%clk 0:02:16.7]} 15... d6 {[%clk 0:01:42.2]} 16. Bc4 {[%clk 0:02:14.1]} 16...
Be6 {[%clk 0:01:41.5]} 17. Bxe6 {[%clk 0:01:57.7]} 17... fxe6 {[%clk 0:01:41]}
18. Rd3 {[%clk 0:01:53.2]} 18... Rhg8 {[%clk 0:01:31.6]} 19. Ne2 {[%clk
0:01:50.4]} 19... g5 {[%clk 0:01:29.7]} 20. hxg5 {[%clk 0:01:48.3]} 20... Rxg5
{[%clk 0:01:29.7]} 21. g3 {[%clk 0:01:49.2]} 21... d5 {[%clk 0:01:28.4]} 22. f4
{[%clk 0:01:38.3]} 22... exf4 {[%clk 0:01:28.2]} 23. gxf4 {[%clk 0:01:39.2]}
23... Rg2 {[%clk 0:01:26.3]} 24. e5 {[%clk 0:01:34.7]} 24... Rxe2 {[%clk
0:01:20.5]} 25. exf6+ {[%clk 0:01:34.8]} 25... Kxf6 {[%clk 0:01:21.4]} 26. Rxh5
{[%clk 0:01:35.4]} 26... Rg8 {[%clk 0:01:21.4]} 27. Rh1 {[%clk 0:00:37.9]} 27...
c5 {[%clk 0:01:20.8]} 28. Rc3 {[%clk 0:00:35.3]} 28... c4 {[%clk 0:01:18.6]} 29.
b3 {[%clk 0:00:23.5]} 29... Rgg2 {[%clk 0:00:52.1]} 30. bxc4 {[%clk 0:00:21.4]}
30... d4 {[%clk 0:00:52.1]} 31. Rd3 {[%clk 0:00:17.9]} 31... Rxc2+ {[%clk
0:00:51.9]} 32. Kb1 {[%clk 0:00:17.5]} 32... Rxc4 {[%clk 0:00:34.8]} 33. Rhd1
{[%clk 0:00:17.6]} 33... Ra4 {[%clk 0:00:22.8]} 34. Rxd4 {[%clk 0:00:14.2]}
34... Rxa3 {[%clk 0:00:23.1]} 35. Re4 {[%clk 0:00:07.5]} 35... Ra6 {[%clk
0:00:18.8]} 36. Rde1 {[%clk 0:00:06.5]} 36... Rb6+ {[%clk 0:00:19.1]} 37. Ka1
{[%clk 0:00:04.2]} 37... Rc2 {[%clk 0:00:16.8]} 38. Re5 {[%clk 0:00:01.9]} 38...
Rc4 {[%clk 0:00:16.1]} 39. R5e2 {[%clk 0:00:02.1]} 39... Rxf4 {[%clk 0:00:14.2]}
40. Ra2 {[%clk 0:00:02.6]} 40... a6 {[%clk 0:00:14.4]} 41. Ra5 {[%clk
0:00:01.8]} 41... Rf5 {[%clk 0:00:14]} 42. Ra4 {[%clk 0:00:01.9]} 42... e5
{[%clk 0:00:12.2]} 43. Ka2 {[%clk 0:00:01.9]} 43... Re6 {[%clk 0:00:11.4]} 44.
Re2 {[%clk 0:00:02.3]} 44... Rf4 {[%clk 0:00:11.6]} 45. Ra3 {[%clk 0:00:02.5]}
45... Kf5 {[%clk 0:00:11.5]} 46. Rh3 {[%clk 0:00:03.4]} 46... e4 {[%clk
0:00:11.5]} 47. Rh5+ {[%clk 0:00:04]} 47... Kg4 {[%clk 0:00:12.1]} 48. Ra5
{[%clk 0:00:04.9]} 48... e3 {[%clk 0:00:12.2]} 49. Kb3 {[%clk 0:00:05.4]} 49...
Rf2 {[%clk 0:00:12.3]} 50. Raa2 {[%clk 0:00:04.7]} 50... Rxe2 {[%clk 0:00:11.4]}
51. Rxe2 {[%clk 0:00:05.6]} 51... Kf3 {[%clk 0:00:12.3]} 52. Re1 {[%clk
0:00:06.1]} 52... e2 {[%clk 0:00:12.9]} 0-1

[Event "*** Titled Tuesday Blitz"]
[Site "Chess.com"]
[Date "2020.12.01"]
[Round "3"]
[White "MFBerna"]
[Black "szabadaba"]
[Result "1-0"]
[WhiteElo "2426"]
[BlackElo "2657"]
[TimeControl "180+1"]
[EndTime "10:28:54 PST"]
[Termination "MFBerna won on time"]

1. d4 {[%clk 0:03:00.9]} 1... d5 {[%clk 0:02:59.9]} 2. c4 {[%clk 0:02:59.7]}
2... c6 {[%clk 0:03:00.1]} 3. Nf3 {[%clk 0:02:59.5]} 3... Nf6 {[%clk 0:03:00.5]}
4. e3 {[%clk 0:02:58.8]} 4... a6 {[%clk 0:03:00.4]} 5. b3 {[%clk 0:02:58.1]}
5... b5 {[%clk 0:03:00.9]} 6. Nbd2 {[%clk 0:02:56.7]} 6... Bf5 {[%clk
0:03:01.2]} 7. Bb2 {[%clk 0:02:55.7]} 7... e6 {[%clk 0:03:01.6]} 8. Be2 {[%clk
0:02:54.7]} 8... Nbd7 {[%clk 0:03:01.2]} 9. O-O {[%clk 0:02:55.1]} 9... h6
{[%clk 0:03:01.1]} 10. Rc1 {[%clk 0:02:55]} 10... Bb4 {[%clk 0:02:58.3]} 11. Ne5
{[%clk 0:02:45.6]} 11... Nxe5 {[%clk 0:02:57.2]} 12. dxe5 {[%clk 0:02:46]} 12...
Nd7 {[%clk 0:02:45.1]} 13. Nf3 {[%clk 0:02:45]} 13... Bc5 {[%clk 0:02:42.4]} 14.
Bd3 {[%clk 0:02:40.1]} 14... Bg4 {[%clk 0:02:40]} 15. h3 {[%clk 0:02:26.5]}
15... Bh5 {[%clk 0:02:34.3]} 16. g4 {[%clk 0:02:26.2]} 16... Bg6 {[%clk
0:02:34.2]} 17. cxd5 {[%clk 0:02:17.6]} 17... cxd5 {[%clk 0:02:31.6]} 18. Bd4
{[%clk 0:02:09.8]} 18... Bxd3 {[%clk 0:02:15.3]} 19. Qxd3 {[%clk 0:02:07.3]}
19... Rc8 {[%clk 0:02:14.7]} 20. Qc2 {[%clk 0:01:54.6]} 20... O-O {[%clk
0:02:12.1]} 21. Qd2 {[%clk 0:01:47.6]} 21... Qb6 {[%clk 0:02:01.7]} 22. Bxc5
{[%clk 0:01:40.1]} 22... Rxc5 {[%clk 0:02:00.9]} 23. Qd4 {[%clk 0:01:40.1]}
23... Rfc8 {[%clk 0:01:58.1]} 24. Rxc5 {[%clk 0:01:22]} 24... Qxc5 {[%clk
0:01:59]} 25. Qf4 {[%clk 0:01:14.5]} 25... Qc2 {[%clk 0:01:55.8]} 26. h4 {[%clk
0:01:09.1]} 26... Qe4 {[%clk 0:01:52.5]} 27. Rd1 {[%clk 0:00:51]} 27... Qxf4
{[%clk 0:01:41.5]} 28. exf4 {[%clk 0:00:51.9]} 28... Rc2 {[%clk 0:01:41.1]} 29.
Rd2 {[%clk 0:00:52]} 29... Rc1+ {[%clk 0:01:40.6]} 30. Kg2 {[%clk 0:00:51.8]}
30... Nc5 {[%clk 0:01:40.7]} 31. Nd4 {[%clk 0:00:44.2]} 31... Ne4 {[%clk
0:00:43]} 32. Rc2 {[%clk 0:00:44.2]} 32... Rd1 {[%clk 0:00:42.9]} 33. Nc6 {[%clk
0:00:28.1]} 33... d4 {[%clk 0:00:20.8]} 34. Nb4 {[%clk 0:00:17.3]} 34... a5
{[%clk 0:00:16.7]} 35. Rc8+ {[%clk 0:00:18.2]} 35... Kh7 {[%clk 0:00:16.3]} 36.
Nc6 {[%clk 0:00:18.4]} 36... Rc1 {[%clk 0:00:13]} 37. Ne7 {[%clk 0:00:13.1]}
37... Rxc8 {[%clk 0:00:11.9]} 38. Nxc8 {[%clk 0:00:14]} 38... d3 {[%clk
0:00:11.6]} 39. Kf3 {[%clk 0:00:14.2]} 39... d2 {[%clk 0:00:07.4]} 40. Ke2
{[%clk 0:00:15.1]} 40... Nxf2 {[%clk 0:00:07]} 41. Kxd2 {[%clk 0:00:16]} 41...
Nxg4 {[%clk 0:00:07.1]} 42. Nd6 {[%clk 0:00:13.3]} 42... Nf2 {[%clk 0:00:06.7]}
43. Nxf7 {[%clk 0:00:08.3]} 43... Ne4+ {[%clk 0:00:05.4]} 44. Kd3 {[%clk
0:00:06.6]} 44... Nc5+ {[%clk 0:00:04.8]} 45. Kd4 {[%clk 0:00:06.3]} 45... Na6
{[%clk 0:00:04.8]} 46. Nd8 {[%clk 0:00:06.3]} 46... Nb4 {[%clk 0:00:04.6]} 47.
a4 {[%clk 0:00:05]} 47... bxa4 {[%clk 0:00:04.7]} 48. bxa4 {[%clk 0:00:05.9]}
48... Kg6 {[%clk 0:00:04.1]} 49. Nxe6 {[%clk 0:00:06.4]} 1-0

[Event "*** Titled Tuesday Blitz"]
[Site "Chess.com"]
[Date "2020.12.01"]
[Round "3"]
[White "anon102030"]
[Black "ambaixador"]
[Result "1-0"]
[WhiteElo "2722"]
[BlackElo "2432"]
[TimeControl "180+1"]
[EndTime "10:28:55 PST"]
[Termination "anon102030 won on time"]

1. e4 {[%clk 0:03:00.9]} 1... c6 {[%clk 0:02:58.5]} 2. d3 {[%clk 0:03:00.7]}
2... d5 {[%clk 0:02:59.4]} 3. Nd2 {[%clk 0:03:01.1]} 3... g6 {[%clk 0:02:58.2]}
4. g3 {[%clk 0:03:00.9]} 4... Bg7 {[%clk 0:02:58.1]} 5. Bg2 {[%clk 0:03:01]}
5... Nf6 {[%clk 0:02:57.5]} 6. Ngf3 {[%clk 0:03:00.9]} 6... O-O {[%clk
0:02:57.8]} 7. O-O {[%clk 0:03:01.5]} 7... Re8 {[%clk 0:02:52.5]} 8. e5 {[%clk
0:02:58]} 8... Nfd7 {[%clk 0:02:52.1]} 9. d4 {[%clk 0:02:58.6]} 9... Nf8 {[%clk
0:02:52.4]} 10. c3 {[%clk 0:02:58.5]} 10... c5 {[%clk 0:02:52.6]} 11. dxc5
{[%clk 0:02:55.4]} 11... Nc6 {[%clk 0:02:39.8]} 12. Re1 {[%clk 0:02:54.6]} 12...
a5 {[%clk 0:02:38.4]} 13. Nb3 {[%clk 0:02:27.8]} 13... Ne6 {[%clk 0:02:14.5]}
14. Ng5 {[%clk 0:01:56.8]} 14... a4 {[%clk 0:01:23.7]} 15. Nxe6 {[%clk
0:01:48.2]} 15... Bxe6 {[%clk 0:01:24.6]} 16. Nd4 {[%clk 0:01:48.5]} 16... Nxe5
{[%clk 0:00:52.6]} 17. Nxe6 {[%clk 0:01:44.1]} 17... fxe6 {[%clk 0:00:53.5]} 18.
Bf4 {[%clk 0:01:30.8]} 18... Nd7 {[%clk 0:00:49]} 19. Rxe6 {[%clk 0:01:28.6]}
19... Nxc5 {[%clk 0:00:48.9]} 20. Re2 {[%clk 0:01:16.5]} 20... e6 {[%clk
0:00:48.6]} 21. Be5 {[%clk 0:01:07.4]} 21... Nd7 {[%clk 0:00:44.3]} 22. Bxg7
{[%clk 0:01:06.4]} 22... Kxg7 {[%clk 0:00:45.2]} 23. Qd4+ {[%clk 0:01:01.6]}
23... Qf6 {[%clk 0:00:45.3]} 24. Rae1 {[%clk 0:01:02.3]} 24... Qxd4 {[%clk
0:00:40.6]} 25. cxd4 {[%clk 0:01:03.2]} 25... Kf7 {[%clk 0:00:40.2]} 26. Rc1
{[%clk 0:00:55.9]} 26... Rec8 {[%clk 0:00:39.3]} 27. Rec2 {[%clk 0:00:56.6]}
27... Rxc2 {[%clk 0:00:37.9]} 28. Rxc2 {[%clk 0:00:57.5]} 28... Ke7 {[%clk
0:00:34.6]} 29. Bf1 {[%clk 0:00:52.7]} 29... Kd6 {[%clk 0:00:33.5]} 30. Bb5
{[%clk 0:00:50.5]} 30... Ra5 {[%clk 0:00:33.2]} 31. Bd3 {[%clk 0:00:48.1]} 31...
a3 {[%clk 0:00:29.7]} 32. b3 {[%clk 0:00:46.2]} 32... Ra8 {[%clk 0:00:27.3]} 33.
f3 {[%clk 0:00:43.6]} 33... Nb6 {[%clk 0:00:23]} 34. Kf2 {[%clk 0:00:32.9]}
34... Rc8 {[%clk 0:00:23.5]} 35. Ke3 {[%clk 0:00:32.8]} 35... Rxc2 {[%clk
0:00:22.6]} 36. Bxc2 {[%clk 0:00:33.7]} 36... Nd7 {[%clk 0:00:20.1]} 37. Kf4
{[%clk 0:00:31.9]} 37... b5 {[%clk 0:00:17.2]} 38. Kg5 {[%clk 0:00:28.8]} 38...
e5 {[%clk 0:00:16]} 39. Kh6 {[%clk 0:00:23.5]} 39... exd4 {[%clk 0:00:14.4]} 40.
Kxh7 {[%clk 0:00:24.1]} 40... Ne5 {[%clk 0:00:14.5]} 41. f4 {[%clk 0:00:20.7]}
41... Nf3 {[%clk 0:00:11.4]} 42. Bd1 {[%clk 0:00:18.4]} 42... Ne1 {[%clk
0:00:06]} 43. Kxg6 {[%clk 0:00:17.6]} 43... Nd3 {[%clk 0:00:05.9]} 44. h4 {[%clk
0:00:13.9]} 44... Nc1 {[%clk 0:00:04.9]} 45. h5 {[%clk 0:00:12.6]} 45... Nxa2
{[%clk 0:00:04.6]} 46. h6 {[%clk 0:00:12.5]} 46... Nb4 {[%clk 0:00:03.9]} 47. h7
{[%clk 0:00:13.4]} 47... a2 {[%clk 0:00:02.5]} 48. h8=Q {[%clk 0:00:14]} 48...
a1=Q {[%clk 0:00:02]} 49. Qf8+ {[%clk 0:00:10.4]} 49... Kc6 {[%clk 0:00:02.2]}
50. Bf3 {[%clk 0:00:07.5]} 1-0

[Event "*** Titled Tuesday Blitz"]
[Site "Chess.com"]
[Date "2020.12.01"]
[Round "3"]
[White "hermionegrangermagic"]
[Black "Oleksandr_Bortnyk"]
[Result "0-1"]
[WhiteElo "2618"]
[BlackElo "2881"]
[TimeControl "180+1"]
[EndTime "10:28:56 PST"]
[Termination "Oleksandr_Bortnyk won by checkmate"]

1. e4 {[%clk 0:03:00.9]} 1... Nf6 {[%clk 0:02:59.8]} 2. e5 {[%clk 0:02:50.2]}
2... Nd5 {[%clk 0:02:59.8]} 3. d4 {[%clk 0:02:50.1]} 3... d6 {[%clk 0:03:00]} 4.
exd6 {[%clk 0:02:49.9]} 4... exd6 {[%clk 0:03:00.3]} 5. c4 {[%clk 0:02:50.5]}
5... Nb6 {[%clk 0:03:00.1]} 6. Nc3 {[%clk 0:02:50.3]} 6... Be7 {[%clk
0:03:00.7]} 7. Bd3 {[%clk 0:02:49.3]} 7... O-O {[%clk 0:03:00.6]} 8. Nge2 {[%clk
0:02:48.2]} 8... Nc6 {[%clk 0:03:00.6]} 9. b3 {[%clk 0:02:46]} 9... Bg4 {[%clk
0:03:00.2]} 10. f3 {[%clk 0:02:40.9]} 10... Bh4+ {[%clk 0:02:59.2]} 11. Kf1
{[%clk 0:02:35.7]} 11... Bh5 {[%clk 0:02:55.1]} 12. Ng3 {[%clk 0:02:19.9]} 12...
Bg6 {[%clk 0:02:54.3]} 13. Bxg6 {[%clk 0:02:18.1]} 13... fxg6 {[%clk 0:02:51.8]}
14. Bb2 {[%clk 0:02:12.1]} 14... Qd7 {[%clk 0:02:34.3]} 15. c5 {[%clk
0:02:11.3]} 15... Nc8 {[%clk 0:02:30.4]} 16. d5 {[%clk 0:02:05.4]} 16... Ne5
{[%clk 0:02:28.3]} 17. Nce4 {[%clk 0:02:04.1]} 17... Ne7 {[%clk 0:02:24.5]} 18.
Bxe5 {[%clk 0:01:59]} 18... dxe5 {[%clk 0:02:25.4]} 19. d6 {[%clk 0:01:56.9]}
19... Nf5 {[%clk 0:02:22.7]} 20. Nxf5 {[%clk 0:01:53.3]} 20... gxf5 {[%clk
0:02:23.6]} 21. Ng3 {[%clk 0:01:48.3]} 21... Qb5+ {[%clk 0:02:21]} 22. Qe2
{[%clk 0:01:44.5]} 22... Qxc5 {[%clk 0:02:21.9]} 23. dxc7 {[%clk 0:01:42.1]}
23... Qxc7 {[%clk 0:02:21.5]} 24. Qc4+ {[%clk 0:01:25]} 24... Qxc4+ {[%clk
0:02:19.5]} 25. bxc4 {[%clk 0:01:24.7]} 25... Rac8 {[%clk 0:02:19.8]} 26. Rc1
{[%clk 0:01:24.5]} 26... b5 {[%clk 0:02:19.5]} 27. c5 {[%clk 0:01:24]} 27... Rc6
{[%clk 0:02:14.5]} 28. Ke2 {[%clk 0:01:19.1]} 28... Bxg3 {[%clk 0:02:14.4]} 29.
hxg3 {[%clk 0:01:18.8]} 29... Rfc8 {[%clk 0:02:15.3]} 30. Rhd1 {[%clk
0:01:11.9]} 30... Rxc5 {[%clk 0:02:15.5]} 31. Rd8+ {[%clk 0:01:11.4]} 31... Rxd8
{[%clk 0:02:14.7]} 32. Rxc5 {[%clk 0:01:10.8]} 32... Rd6 {[%clk 0:01:38.6]} 33.
Rxb5 {[%clk 0:00:56]} 33... Ra6 {[%clk 0:01:38]} 34. Rxe5 {[%clk 0:00:42.4]}
34... Rxa2+ {[%clk 0:01:37.8]} 35. Ke3 {[%clk 0:00:40.9]} 35... g6 {[%clk
0:01:28.1]} 36. Re7 {[%clk 0:00:40.3]} 36... Ra4 {[%clk 0:01:12.1]} 37. Rb7
{[%clk 0:00:37.4]} 37... h6 {[%clk 0:01:08.2]} 38. Rc7 {[%clk 0:00:28.9]} 38...
a5 {[%clk 0:00:59.8]} 39. Ra7 {[%clk 0:00:28.9]} 39... g5 {[%clk 0:00:57.3]} 40.
f4 {[%clk 0:00:24.4]} 40... g4 {[%clk 0:00:48.5]} 41. Ra8+ {[%clk 0:00:19.5]}
41... Kf7 {[%clk 0:00:46.4]} 42. Ra7+ {[%clk 0:00:19.4]} 42... Ke6 {[%clk
0:00:46.4]} 43. Ra6+ {[%clk 0:00:19.5]} 43... Kd5 {[%clk 0:00:46.7]} 44. Rxh6
{[%clk 0:00:13.3]} 44... Ra3+ {[%clk 0:00:44.6]} 45. Kf2 {[%clk 0:00:13.4]}
45... Ra2+ {[%clk 0:00:45.3]} 46. Kg1 {[%clk 0:00:13.5]} 46... a4 {[%clk
0:00:45.8]} 47. Rf6 {[%clk 0:00:09.5]} 47... Ke4 {[%clk 0:00:43.8]} 48. Kh2
{[%clk 0:00:08.4]} 48... Rb2 {[%clk 0:00:35.5]} 49. Re6+ {[%clk 0:00:08.2]}
49... Kd4 {[%clk 0:00:33.3]} 50. Rd6+ {[%clk 0:00:08.4]} 50... Kc4 {[%clk
0:00:22.6]} 51. Rc6+ {[%clk 0:00:06.7]} 51... Kb5 {[%clk 0:00:21.6]} 52. Rc1
{[%clk 0:00:04.1]} 52... a3 {[%clk 0:00:21.4]} 53. Rd1 {[%clk 0:00:01.5]} 53...
a2 {[%clk 0:00:21.2]} 54. Re1 {[%clk 0:00:01.4]} 54... Kb4 {[%clk 0:00:20.1]}
55. Rf1 {[%clk 0:00:01.4]} 55... Kb3 {[%clk 0:00:20]} 56. Re1 {[%clk 0:00:01.8]}
56... Rc2 {[%clk 0:00:20.5]} 57. Re3+ {[%clk 0:00:01.6]} 57... Kb2 {[%clk
0:00:20.4]} 58. Re1 {[%clk 0:00:01.6]} 58... a1=Q {[%clk 0:00:17.4]} 59. Rxa1
{[%clk 0:00:01.6]} 59... Kxa1 {[%clk 0:00:17.6]} 60. Kg1 {[%clk 0:00:01.3]}
60... Kb2 {[%clk 0:00:18]} 61. Kh2 {[%clk 0:00:02.2]} 61... Kc3 {[%clk
0:00:18.7]} 62. Kg1 {[%clk 0:00:03.1]} 62... Kd3 {[%clk 0:00:19.4]} 63. Kh2
{[%clk 0:00:04]} 63... Ke3 {[%clk 0:00:20]} 64. Kg1 {[%clk 0:00:04.9]} 64... Rc7
{[%clk 0:00:20]} 65. Kh2 {[%clk 0:00:05.8]} 65... Kf2 {[%clk 0:00:20.3]} 66. Kh1
{[%clk 0:00:06]} 66... Rh7# {[%clk 0:00:21.2]} 0-1